[Event "Titled Tuesday Blitz October 25 Early 2022"]
[White "Faizrakhmanov, Ramil"]
[Black "Hasangatin, Ramil"]
[WhiteFideId "24103209"]
[BlackFideId "4122160"]
[WhiteElo "2421"]
[BlackElo "2358"]
[Result "1-0"]
[Round "11"]
[TimeControl "180+1"]
[Date "2022.10.25"]
[WhiteClock "0:00:21"]
[BlackClock "0:00:24"]

1. d4 {[%clk 0:03:00]}  d6 {[%clk 0:03:00]} 2. Nf3 {[%clk 0:03:01]}  Bg4 {[%clk 0:03:00]} 3. c4 {[%clk 0:03:02]}  Bxf3 {[%clk 0:03:00]} 4. exf3 {[%clk 0:03:02]}  c6 {[%clk 0:03:00]} 5. Nc3 {[%clk 0:03:03]}  Nf6 {[%clk 0:02:59]} 6. d5 {[%clk 0:03:03]}  g6 {[%clk 0:02:58]} 7. g3 {[%clk 0:03:03]}  Bg7 {[%clk 0:02:59]} 8. Bg2 {[%clk 0:03:03]}  cxd5 {[%clk 0:02:59]} 9. cxd5 {[%clk 0:03:04]}  O-O {[%clk 0:03:00]} 10. O-O {[%clk 0:03:05]}  Nbd7 {[%clk 0:03:00]} 11. f4 {[%clk 0:03:04]}  a6 {[%clk 0:03:01]} 12. Re1 {[%clk 0:03:04]}  Re8 {[%clk 0:03:02]} 13. a4 {[%clk 0:03:03]}  Qa5 {[%clk 0:02:55]} 14. Be3 {[%clk 0:03:02]}  Nc5 {[%clk 0:02:55]} 15. Bd4 {[%clk 0:03:01]}  Qb4 {[%clk 0:02:51]} 16. Rb1 {[%clk 0:02:42]}  Nfd7 {[%clk 0:02:51]} 17. Bxg7 {[%clk 0:02:41]}  Kxg7 {[%clk 0:02:52]} 18. Qc2 {[%clk 0:02:34]}  Qb3 {[%clk 0:02:42]} 19. Qd2 {[%clk 0:02:33]}  Qb4 {[%clk 0:02:38]} 20. Re3 {[%clk 0:02:11]}  Nf6 {[%clk 0:02:35]} 21. Qc2 {[%clk 0:02:01]}  Rac8 {[%clk 0:02:18]} 22. Rbe1 {[%clk 0:01:51]}  Rc7 {[%clk 0:02:17]} 23. h4 {[%clk 0:01:50]}  Nxa4 {[%clk 0:02:06]} 24. Qxa4 {[%clk 0:01:46]}  Qxb2 {[%clk 0:02:00]} 25. Ne4 {[%clk 0:01:36]}  Rec8 {[%clk 0:01:32]} 26. R3e2 {[%clk 0:01:21]}  Rc2 {[%clk 0:01:28]} 27. Rxc2 {[%clk 0:01:05]}  Rxc2 {[%clk 0:01:29]} 28. Qa1 {[%clk 0:00:55]}  Qxa1 {[%clk 0:01:20]} 29. Rxa1 {[%clk 0:00:51]}  Nxd5 {[%clk 0:01:21]} 30. Nxd6 {[%clk 0:00:48]}  Nxf4 {[%clk 0:00:43]} 31. Nxb7 {[%clk 0:00:46]}  Nxg2 {[%clk 0:00:36]} 32. Kxg2 {[%clk 0:00:47]}  Rc6 {[%clk 0:00:36]} 33. Ra5 {[%clk 0:00:42]}  h6 {[%clk 0:00:23]} 34. Nc5 {[%clk 0:00:41]}  g5 {[%clk 0:00:23]} 35. hxg5 {[%clk 0:00:38]}  hxg5 {[%clk 0:00:24]} 36. Nxa6 {[%clk 0:00:38]}  f6 {[%clk 0:00:23]} 37. Nb4 {[%clk 0:00:37]}  Rd6 {[%clk 0:00:22]} 38. Nd5 {[%clk 0:00:36]}  Kf7 {[%clk 0:00:22]} 39. Ne3 {[%clk 0:00:37]}  e6 {[%clk 0:00:20]} 40. Rb5 {[%clk 0:00:26]}  Rd4 {[%clk 0:00:20]} 41. Rc5 {[%clk 0:00:25]}  f5 {[%clk 0:00:18]} 42. Nc4 {[%clk 0:00:22]}  Kf6 {[%clk 0:00:18]} 43. Rc6 {[%clk 0:00:21]}  g4 {[%clk 0:00:18]} 44. Nd6 {[%clk 0:00:18]}  Rd5 {[%clk 0:00:15]} 45. Nb7 {[%clk 0:00:18]}  Re5 {[%clk 0:00:09]} 46. Nc5 {[%clk 0:00:18]}  Kf7 {[%clk 0:00:09]} 47. Rc7+ {[%clk 0:00:17]}  Kg6 {[%clk 0:00:07]} 48. Nd7 {[%clk 0:00:17]}  Re4 {[%clk 0:00:06]} 49. Rc6 {[%clk 0:00:14]}  Kf7 {[%clk 0:00:05]} 50. Ra6 {[%clk 0:00:13]}  Ke7 {[%clk 0:00:05]} 51. Nc5 {[%clk 0:00:13]}  Re5 {[%clk 0:00:05]} 52. Ra7+ {[%clk 0:00:13]}  Kd6 {[%clk 0:00:04]} 53. Nd3 {[%clk 0:00:13]}  Re4 {[%clk 0:00:04]} 54. Nf4 {[%clk 0:00:13]}  Ke5 {[%clk 0:00:02]} 55. Rf7 {[%clk 0:00:09]}  Kd6 {[%clk 0:00:01]} 56. Rf6 {[%clk 0:00:09]}  Ke7 {[%clk 0:00:01]} 57. Rh6 {[%clk 0:00:10]}  Kf7 {[%clk 0:00:02]} 58. Nh5 {[%clk 0:00:10]}  Ke7 {[%clk 0:00:01]} 59. Rh7+ {[%clk 0:00:10]}  Kd6 {[%clk 0:00:01]} 60. Nf6 {[%clk 0:00:11]}  Rd4 {[%clk 0:00:02]} 61. Rd7+ {[%clk 0:00:10]}  Ke5 {[%clk 0:00:02]} 62. Rxd4 {[%clk 0:00:11]}  Kxd4 {[%clk 0:00:03]} 63. Nh5 {[%clk 0:00:11]}  Ke5 {[%clk 0:00:03]} 64. Nf4 {[%clk 0:00:11]}  Ke4 {[%clk 0:00:04]} 65. Nxe6 {[%clk 0:00:11]}  Ke5 {[%clk 0:00:05]} 66. Nf4 {[%clk 0:00:12]}  Kf6 {[%clk 0:00:06]} 67. Kf1 {[%clk 0:00:12]}  Ke5 {[%clk 0:00:07]} 68. Ke1 {[%clk 0:00:12]}  Ke4 {[%clk 0:00:08]} 69. Ke2 {[%clk 0:00:13]}  Kd4 {[%clk 0:00:08]} 70. Ng2 {[%clk 0:00:12]}  Ke4 {[%clk 0:00:09]} 71. Nf4 {[%clk 0:00:10]}  Kd4 {[%clk 0:00:09]} 72. Ne6+ {[%clk 0:00:10]}  Ke4 {[%clk 0:00:10]} 73. Ng7 {[%clk 0:00:10]}  Ke5 {[%clk 0:00:10]} 74. Ke3 {[%clk 0:00:10]}  Kf6 {[%clk 0:00:10]} 75. Nh5+ {[%clk 0:00:10]}  Ke5 {[%clk 0:00:11]} 76. Nf4 {[%clk 0:00:11]}  Kf6 {[%clk 0:00:11]} 77. Kd4 {[%clk 0:00:12]}  Kg5 {[%clk 0:00:11]} 78. Ke5 {[%clk 0:00:12]}  Kh6 {[%clk 0:00:11]} 79. Kxf5 {[%clk 0:00:13]}  Kg7 {[%clk 0:00:12]} 80. Kxg4 {[%clk 0:00:13]}  Kf6 {[%clk 0:00:13]} 81. f3 {[%clk 0:00:14]}  Ke5 {[%clk 0:00:14]} 82. Ng2 {[%clk 0:00:15]}  Kd4 {[%clk 0:00:14]} 83. Nh4 {[%clk 0:00:16]}  Kd3 {[%clk 0:00:15]} 84. f4 {[%clk 0:00:17]}  Ke2 {[%clk 0:00:16]} 85. f5 {[%clk 0:00:17]}  Kf2 {[%clk 0:00:17]} 86. f6 {[%clk 0:00:18]}  Ke1 {[%clk 0:00:17]} 87. f7 {[%clk 0:00:19]}  Ke2 {[%clk 0:00:18]} 88. f8=Q {[%clk 0:00:19]}  Kd1 {[%clk 0:00:19]} 89. Kf3 {[%clk 0:00:20]}  Kc2 {[%clk 0:00:20]} 90. Qd6 {[%clk 0:00:20]}  Kb1 {[%clk 0:00:21]} 91. Ke2 {[%clk 0:00:20]}  Ka2 {[%clk 0:00:22]} 92. Qb6 {[%clk 0:00:20]}  Ka1 {[%clk 0:00:22]} 93. Kd3 {[%clk 0:00:21]}  Ka2 {[%clk 0:00:23]} 94. Kc3 {[%clk 0:00:21]}  Ka1 {[%clk 0:00:24]} 95. Qb2# {[%clk 0:00:21]} 1-0


[Site "https://www.chess.com"]

[Event "Titled Tuesday Blitz October 25 Early 2022"]
[White "Gabrielian, Artur"]
[Black "Jones, Gawain C B"]
[WhiteFideId "4131002"]
[BlackFideId "409561"]
[WhiteElo "2432"]
[BlackElo "2657"]
[Result "1/2-1/2"]
[Round "11"]
[TimeControl "180+1"]
[Date "2022.10.25"]
[WhiteClock "0:00:10"]
[BlackClock "0:00:07"]

1. e4 {[%clk 0:03:00]}  c5 {[%clk 0:02:58]} 2. Nf3 {[%clk 0:03:00]}  g6 {[%clk 0:02:59]} 3. d4 {[%clk 0:02:58]}  cxd4 {[%clk 0:02:59]} 4. Nxd4 {[%clk 0:02:58]}  Nc6 {[%clk 0:02:59]} 5. Nc3 {[%clk 0:02:54]}  Bg7 {[%clk 0:02:59]} 6. Be3 {[%clk 0:02:54]}  Nf6 {[%clk 0:02:59]} 7. Bc4 {[%clk 0:02:54]}  O-O {[%clk 0:02:59]} 8. Bb3 {[%clk 0:02:52]}  a5 {[%clk 0:02:59]} 9. O-O {[%clk 0:02:51]}  a4 {[%clk 0:02:56]} 10. Nxa4 {[%clk 0:02:51]}  Nxe4 {[%clk 0:02:57]} 11. Nb5 {[%clk 0:02:52]}  d5 {[%clk 0:02:56]} 12. c3 {[%clk 0:02:47]}  e6 {[%clk 0:02:51]} 13. Qe2 {[%clk 0:02:46]}  Bd7 {[%clk 0:02:47]} 14. Rad1 {[%clk 0:02:37]}  Ne5 {[%clk 0:02:39]} 15. f3 {[%clk 0:02:28]}  Bxb5 {[%clk 0:02:35]} 16. Qxb5 {[%clk 0:02:18]}  Nd6 {[%clk 0:02:35]} 17. Qe2 {[%clk 0:02:08]}  Nec4 {[%clk 0:02:34]} 18. Bf2 {[%clk 0:02:06]}  b6 {[%clk 0:01:57]} 19. Bxc4 {[%clk 0:01:57]}  Nxc4 {[%clk 0:01:56]} 20. b3 {[%clk 0:01:57]}  Qc7 {[%clk 0:01:31]} 21. bxc4 {[%clk 0:01:49]}  Rxa4 {[%clk 0:01:30]} 22. cxd5 {[%clk 0:01:49]}  exd5 {[%clk 0:01:30]} 23. Rxd5 {[%clk 0:01:49]}  Rfa8 {[%clk 0:01:27]} 24. Rfd1 {[%clk 0:01:47]}  Rxa2 {[%clk 0:01:23]} 25. Qe3 {[%clk 0:01:36]}  h5 {[%clk 0:01:06]} 26. Qxb6 {[%clk 0:01:11]}  Qxc3 {[%clk 0:01:01]} 27. Qe3 {[%clk 0:00:58]}  Kh7 {[%clk 0:00:20]} 28. Qxc3 {[%clk 0:00:58]}  Bxc3 {[%clk 0:00:21]} 29. Rd7 {[%clk 0:00:55]}  Kg7 {[%clk 0:00:20]} 30. h3 {[%clk 0:00:46]}  Re8 {[%clk 0:00:18]} 31. Rc7 {[%clk 0:00:33]}  Ree2 {[%clk 0:00:17]} 32. Rxc3 {[%clk 0:00:15]}  Rxf2 {[%clk 0:00:18]} 33. g4 {[%clk 0:00:16]}  Rg2+ {[%clk 0:00:17]} 34. Kh1 {[%clk 0:00:13]}  Rh2+ {[%clk 0:00:17]} 35. Kg1 {[%clk 0:00:13]}  Rag2+ {[%clk 0:00:14]} 36. Kf1 {[%clk 0:00:13]}  Ra2 {[%clk 0:00:13]} 37. Kg1 {[%clk 0:00:12]}  h4 {[%clk 0:00:13]} 38. f4 {[%clk 0:00:10]}  Rhg2+ {[%clk 0:00:12]} 39. Kh1 {[%clk 0:00:10]}  Rh2+ {[%clk 0:00:10]} 40. Kg1 {[%clk 0:00:10]}  Rag2+ {[%clk 0:00:11]} 41. Kf1 {[%clk 0:00:11]}  Rb2 {[%clk 0:00:08]} 42. Kg1 {[%clk 0:00:10]}  Rbg2+ {[%clk 0:00:08]} 43. Kf1 {[%clk 0:00:10]}  Rf2+ {[%clk 0:00:06]} 44. Kg1 {[%clk 0:00:10]}  Rhg2+ {[%clk 0:00:06]} 45. Kh1 {[%clk 0:00:11]}  Rg3 {[%clk 0:00:07]} 46. Rxg3 {[%clk 0:00:10]}  hxg3 {[%clk 0:00:08]} 47. Rd3 {[%clk 0:00:10]}  Rxf4 {[%clk 0:00:06]} 48. Rxg3 {[%clk 0:00:09]}  Kf6 {[%clk 0:00:06]} 49. Kg2 {[%clk 0:00:09]}  Kg5 {[%clk 0:00:07]} 50. Rf3 {[%clk 0:00:09]}  Rxf3 {[%clk 0:00:03]} 51. Kxf3 {[%clk 0:00:09]}  Kh4 {[%clk 0:00:04]} 52. Kg2 {[%clk 0:00:09]}  f5 {[%clk 0:00:04]} 53. gxf5 {[%clk 0:00:10]}  gxf5 {[%clk 0:00:05]} 54. Kf3 {[%clk 0:00:10]}  f4 {[%clk 0:00:06]} 55. Kxf4 {[%clk 0:00:10]}  Kxh3 {[%clk 0:00:07]} 1/2-1/2


[Site "https://www.chess.com"]

[Event "Titled Tuesday Blitz October 25 Early 2022"]
[White "Halkias, Stelios"]
[Black "Indjic, Aleksandar"]
[WhiteFideId "4201809"]
[BlackFideId "911925"]
[WhiteElo "2453"]
[BlackElo "2592"]
[Result "0-1"]
[Round "11"]
[TimeControl "180+1"]
[Date "2022.10.25"]
[WhiteClock "0:00:20"]
[BlackClock "0:00:40"]

1. Nf3 {[%clk 0:03:00]}  d5 {[%clk 0:02:52]} 2. d4 {[%clk 0:03:00]}  Nf6 {[%clk 0:02:47]} 3. c4 {[%clk 0:03:00]}  e6 {[%clk 0:02:47]} 4. g3 {[%clk 0:03:00]}  Be7 {[%clk 0:02:45]} 5. Bg2 {[%clk 0:02:59]}  O-O {[%clk 0:02:45]} 6. O-O {[%clk 0:02:59]}  dxc4 {[%clk 0:02:45]} 7. Qc2 {[%clk 0:02:56]}  a6 {[%clk 0:02:45]} 8. a4 {[%clk 0:02:56]}  Bd7 {[%clk 0:02:45]} 9. Qxc4 {[%clk 0:02:55]}  Bc6 {[%clk 0:02:46]} 10. Bf4 {[%clk 0:02:53]}  a5 {[%clk 0:02:42]} 11. Qc1 {[%clk 0:02:45]}  Bd6 {[%clk 0:02:40]} 12. Nc3 {[%clk 0:02:45]}  Na6 {[%clk 0:02:37]} 13. Bg5 {[%clk 0:02:25]}  Be7 {[%clk 0:02:24]} 14. Rd1 {[%clk 0:02:25]}  Nb4 {[%clk 0:02:23]} 15. Ne5 {[%clk 0:02:14]}  Bxg2 {[%clk 0:02:21]} 16. Kxg2 {[%clk 0:02:14]}  Nd7 {[%clk 0:02:17]} 17. Bxe7 {[%clk 0:02:12]}  Qxe7 {[%clk 0:02:18]} 18. Nf3 {[%clk 0:02:01]}  Rfd8 {[%clk 0:02:12]} 19. Qf4 {[%clk 0:01:59]}  Nf8 {[%clk 0:02:10]} 20. Rac1 {[%clk 0:01:57]}  c6 {[%clk 0:02:10]} 21. e4 {[%clk 0:01:55]}  Rd6 {[%clk 0:02:08]} 22. h4 {[%clk 0:01:54]}  h6 {[%clk 0:02:06]} 23. Qe3 {[%clk 0:01:36]}  Rad8 {[%clk 0:02:04]} 24. Ne2 {[%clk 0:01:28]}  b6 {[%clk 0:01:50]} 25. Ne5 {[%clk 0:01:27]}  Qb7 {[%clk 0:01:45]} 26. Nc3 {[%clk 0:01:11]}  b5 {[%clk 0:01:35]} 27. Kh2 {[%clk 0:01:08]}  Qb6 {[%clk 0:01:29]} 28. Nf3 {[%clk 0:00:54]}  Ng6 {[%clk 0:01:15]} 29. h5 {[%clk 0:00:54]}  Ne7 {[%clk 0:01:15]} 30. g4 {[%clk 0:00:53]}  Qb8 {[%clk 0:01:05]} 31. Kh3 {[%clk 0:00:51]}  f5 {[%clk 0:01:01]} 32. gxf5 {[%clk 0:00:41]}  exf5 {[%clk 0:01:00]} 33. e5 {[%clk 0:00:41]}  Ned5 {[%clk 0:00:55]} 34. Nxd5 {[%clk 0:00:38]}  Nxd5 {[%clk 0:00:56]} 35. Qd2 {[%clk 0:00:38]}  Re6 {[%clk 0:00:52]} 36. Rg1 {[%clk 0:00:36]}  Qb7 {[%clk 0:00:45]} 37. Rg3 {[%clk 0:00:25]}  Qf7 {[%clk 0:00:44]} 38. Kg2 {[%clk 0:00:21]}  f4 {[%clk 0:00:41]} 39. Rg4 {[%clk 0:00:19]}  Qxh5 {[%clk 0:00:41]} 40. Rh4 {[%clk 0:00:20]}  Rg6+ {[%clk 0:00:40]} 0-1


[Site "https://www.chess.com"]

[Event "Titled Tuesday Blitz October 25 Early 2022"]
[White "Kamsky, Gata"]
[Black "Vachylia, Andrii"]
[WhiteFideId "2000024"]
[BlackFideId "14137224"]
[WhiteElo "2666"]
[BlackElo "2318"]
[Result "1-0"]
[Round "11"]
[TimeControl "180+1"]
[Date "2022.10.25"]
[WhiteClock "0:01:41"]
[BlackClock "0:00:28"]

1. e4 {[%clk 0:03:00]}  c5 {[%clk 0:02:56]} 2. Nc3 {[%clk 0:02:59]}  d6 {[%clk 0:02:55]} 3. Bc4 {[%clk 0:02:58]}  Nc6 {[%clk 0:02:55]} 4. a3 {[%clk 0:02:57]}  e6 {[%clk 0:02:54]} 5. Ba2 {[%clk 0:02:56]}  Nf6 {[%clk 0:02:50]} 6. d3 {[%clk 0:02:56]}  Be7 {[%clk 0:02:50]} 7. f4 {[%clk 0:02:56]}  O-O {[%clk 0:02:50]} 8. Nf3 {[%clk 0:02:57]}  d5 {[%clk 0:02:45]} 9. O-O {[%clk 0:02:56]}  Rb8 {[%clk 0:02:45]} 10. Qe1 {[%clk 0:02:56]}  b5 {[%clk 0:02:25]} 11. e5 {[%clk 0:02:55]}  Nd7 {[%clk 0:02:22]} 12. Qg3 {[%clk 0:02:53]}  f5 {[%clk 0:02:15]} 13. exf6 {[%clk 0:02:51]}  Nxf6 {[%clk 0:02:14]} 14. Bd2 {[%clk 0:02:38]}  c4 {[%clk 0:02:11]} 15. Rae1 {[%clk 0:02:32]}  Bc5+ {[%clk 0:01:56]} 16. Kh1 {[%clk 0:02:29]}  Ne7 {[%clk 0:01:57]} 17. Ne5 {[%clk 0:02:19]}  Nf5 {[%clk 0:01:54]} 18. Qh3 {[%clk 0:02:19]}  Bb7 {[%clk 0:01:27]} 19. Ne2 {[%clk 0:02:04]}  Ba8 {[%clk 0:01:10]} 20. Ng3 {[%clk 0:01:58]}  Nxg3+ {[%clk 0:00:52]} 21. hxg3 {[%clk 0:01:56]}  Rb6 {[%clk 0:00:47]} 22. g4 {[%clk 0:01:56]}  Rd6 {[%clk 0:00:33]} 23. g5 {[%clk 0:01:52]}  Ne8 {[%clk 0:00:33]} 24. c3 {[%clk 0:01:45]}  g6 {[%clk 0:00:29]} 25. d4 {[%clk 0:01:45]}  Bb6 {[%clk 0:00:30]} 26. Bb1 {[%clk 0:01:44]}  Ng7 {[%clk 0:00:30]} 27. g4 {[%clk 0:01:43]}  Bc7 {[%clk 0:00:29]} 28. Re2 {[%clk 0:01:41]}  Rb6 {[%clk 0:00:28]} 29. Rh2 {[%clk 0:01:41]} 1-0


[Site "https://www.chess.com"]

[Event "Titled Tuesday Blitz October 25 Early 2022"]
[White "Kosakowski, Jakub"]
[Black "Sanal, Vahap"]
[WhiteFideId "1185080"]
[BlackFideId "6300545"]
[WhiteElo "2463"]
[BlackElo "2574"]
[Result "0-1"]
[Round "11"]
[TimeControl "180+1"]
[Date "2022.10.25"]
[WhiteClock "0:00:01"]
[BlackClock "0:00:08"]

1. e4 {[%clk 0:02:58]}  d6 {[%clk 0:02:59]} 2. d4 {[%clk 0:02:56]}  Nf6 {[%clk 0:02:59]} 3. Nc3 {[%clk 0:02:55]}  e5 {[%clk 0:02:59]} 4. Nf3 {[%clk 0:02:55]}  Nbd7 {[%clk 0:02:59]} 5. Rg1 {[%clk 0:02:55]}  c6 {[%clk 0:02:56]} 6. g4 {[%clk 0:02:54]}  h6 {[%clk 0:02:56]} 7. Be3 {[%clk 0:02:53]}  Be7 {[%clk 0:02:56]} 8. Qd2 {[%clk 0:02:51]}  b5 {[%clk 0:02:55]} 9. a3 {[%clk 0:02:51]}  Qa5 {[%clk 0:02:49]} 10. Bd3 {[%clk 0:02:41]}  Rb8 {[%clk 0:02:45]} 11. h4 {[%clk 0:02:37]}  Nf8 {[%clk 0:02:37]} 12. dxe5 {[%clk 0:02:34]}  dxe5 {[%clk 0:02:38]} 13. Nxe5 {[%clk 0:02:33]}  b4 {[%clk 0:02:37]} 14. Nxc6 {[%clk 0:02:15]}  bxc3 {[%clk 0:02:37]} 15. bxc3 {[%clk 0:02:15]}  Qc7 {[%clk 0:02:38]} 16. Nxb8 {[%clk 0:02:15]}  Qxb8 {[%clk 0:02:39]} 17. g5 {[%clk 0:02:04]}  hxg5 {[%clk 0:02:39]} 18. hxg5 {[%clk 0:02:05]}  Ng4 {[%clk 0:02:37]} 19. Bd4 {[%clk 0:01:59]}  Ne6 {[%clk 0:02:34]} 20. Be2 {[%clk 0:01:31]}  Qh2 {[%clk 0:02:17]} 21. f3 {[%clk 0:01:06]}  Nxd4 {[%clk 0:02:07]} 22. Qxd4 {[%clk 0:01:02]}  Qh4+ {[%clk 0:01:48]} 23. Kd1 {[%clk 0:01:02]}  O-O {[%clk 0:01:46]} 24. Bd3 {[%clk 0:00:53]}  Rd8 {[%clk 0:01:45]} 25. Qxa7 {[%clk 0:00:45]}  Bxg5 {[%clk 0:01:05]} 26. fxg4 {[%clk 0:00:40]}  Qh2 {[%clk 0:01:03]} 27. Ke1 {[%clk 0:00:34]}  Qd2+ {[%clk 0:00:46]} 28. Kf1 {[%clk 0:00:33]}  Be3 {[%clk 0:00:46]} 29. Rg2 {[%clk 0:00:29]}  Qxg2+ {[%clk 0:00:46]} 30. Kxg2 {[%clk 0:00:29]}  Bxa7 {[%clk 0:00:47]} 31. Kf3 {[%clk 0:00:26]}  Rd6 {[%clk 0:00:44]} 32. Rb1 {[%clk 0:00:21]}  Rb6 {[%clk 0:00:44]} 33. Rb4 {[%clk 0:00:20]}  Kf8 {[%clk 0:00:39]} 34. Ra4 {[%clk 0:00:19]}  Rf6+ {[%clk 0:00:38]} 35. Kg3 {[%clk 0:00:17]}  Bb8+ {[%clk 0:00:37]} 36. Kg2 {[%clk 0:00:17]}  Bxg4 {[%clk 0:00:36]} 37. Ra8 {[%clk 0:00:17]}  Rb6 {[%clk 0:00:37]} 38. a4 {[%clk 0:00:18]}  Ke7 {[%clk 0:00:37]} 39. a5 {[%clk 0:00:18]}  Rb1 {[%clk 0:00:35]} 40. a6 {[%clk 0:00:19]}  Bf4 {[%clk 0:00:22]} 41. Bc4 {[%clk 0:00:17]}  Ra1 {[%clk 0:00:16]} 42. Rg8 {[%clk 0:00:14]}  Be5 {[%clk 0:00:15]} 43. Kf2 {[%clk 0:00:09]}  Be6 {[%clk 0:00:15]} 44. Bd3 {[%clk 0:00:08]}  Bxc3 {[%clk 0:00:15]} 45. Rb8 {[%clk 0:00:08]}  Be5 {[%clk 0:00:15]} 46. Rb7+ {[%clk 0:00:09]}  Kf6 {[%clk 0:00:15]} 47. Ke3 {[%clk 0:00:08]}  Ra4 {[%clk 0:00:15]} 48. Kd2 {[%clk 0:00:08]}  Bd4 {[%clk 0:00:13]} 49. Bb5 {[%clk 0:00:05]}  Ra1 {[%clk 0:00:12]} 50. Kd3 {[%clk 0:00:05]}  Bg1 {[%clk 0:00:12]} 51. Rc7 {[%clk 0:00:03]}  g5 {[%clk 0:00:11]} 52. Ke2 {[%clk 0:00:02]}  g4 {[%clk 0:00:10]} 53. c4 {[%clk 0:00:01]}  Ra2+ {[%clk 0:00:08]} 54. Kf1 {[%clk 0:00:02]}  g3 {[%clk 0:00:07]} 55. Kxg1 {[%clk 0:00:01]}  Bh3 {[%clk 0:00:08]} 0-1


[Site "https://www.chess.com"]

[Event "Titled Tuesday Blitz October 25 Early 2022"]
[White "Maghsoodloo, Parham"]
[Black "Oparin, Grigoriy"]
[WhiteFideId "12539929"]
[BlackFideId "24125890"]
[WhiteElo "2676"]
[BlackElo "2639"]
[Result "0-1"]
[Round "11"]
[TimeControl "180+1"]
[Date "2022.10.25"]
[WhiteClock "0:02:14"]
[BlackClock "0:02:03"]

1. d4 {[%clk 0:03:00]}  Nf6 {[%clk 0:02:59]} 2. c4 {[%clk 0:03:01]}  e6 {[%clk 0:03:00]} 3. Nf3 {[%clk 0:03:02]}  d5 {[%clk 0:02:59]} 4. g3 {[%clk 0:03:02]}  Be7 {[%clk 0:02:59]} 5. Bg2 {[%clk 0:03:03]}  O-O {[%clk 0:02:59]} 6. O-O {[%clk 0:03:04]}  dxc4 {[%clk 0:03:00]} 7. Qc2 {[%clk 0:03:05]}  a6 {[%clk 0:03:00]} 8. a4 {[%clk 0:03:05]}  Bd7 {[%clk 0:03:01]} 9. Qxc4 {[%clk 0:03:06]}  Bc6 {[%clk 0:03:02]} 10. Bf4 {[%clk 0:03:07]}  Nbd7 {[%clk 0:02:58]} 11. Qc1 {[%clk 0:02:59]}  Bd6 {[%clk 0:02:56]} 12. Nc3 {[%clk 0:02:56]}  b5 {[%clk 0:02:51]} 13. a5 {[%clk 0:02:46]}  Rc8 {[%clk 0:02:43]} 14. Na2 {[%clk 0:02:37]}  Bd5 {[%clk 0:02:36]} 15. Ne1 {[%clk 0:02:28]}  Bxf4 {[%clk 0:02:30]} 16. Qxf4 {[%clk 0:02:28]}  c5 {[%clk 0:02:25]} 17. dxc5 {[%clk 0:02:28]}  Nxc5 {[%clk 0:02:25]} 18. Nb4 {[%clk 0:02:28]}  Nb3 {[%clk 0:02:12]} 19. Ra3 {[%clk 0:02:25]}  Rc4 {[%clk 0:02:11]} 20. Nxd5 {[%clk 0:02:13]}  Rxf4 {[%clk 0:02:10]} 21. Nxf4 {[%clk 0:02:14]}  Nd2 {[%clk 0:02:11]} 22. Rd3 {[%clk 0:02:14]}  Qxa5 {[%clk 0:02:09]} 23. b4 {[%clk 0:02:14]}  Qa2 {[%clk 0:02:03]} 0-1


[Site "https://www.chess.com"]

[Event "Titled Tuesday Blitz October 25 Early 2022"]
[White "Martinez Alcantara, Jose Eduardo"]
[Black "Andreikin, Dmitry"]
[WhiteFideId "3805662"]
[BlackFideId "4158814"]
[WhiteElo "2703"]
[BlackElo "2736"]
[Result "1-0"]
[Round "11"]
[TimeControl "180+1"]
[Date "2022.10.25"]
[WhiteClock "0:00:50"]
[BlackClock "0:00:20"]

1. e4 {[%clk 0:03:00]}  c5 {[%clk 0:02:58]} 2. Nf3 {[%clk 0:03:01]}  Nc6 {[%clk 0:02:58]} 3. c3 {[%clk 0:03:01]}  Nf6 {[%clk 0:02:57]} 4. Bd3 {[%clk 0:03:02]}  e5 {[%clk 0:02:45]} 5. Bc2 {[%clk 0:03:02]}  d6 {[%clk 0:02:42]} 6. h3 {[%clk 0:02:59]}  Be7 {[%clk 0:02:38]} 7. O-O {[%clk 0:03:00]}  g5 {[%clk 0:02:37]} 8. Nh2 {[%clk 0:02:45]}  h5 {[%clk 0:02:32]} 9. d3 {[%clk 0:02:45]}  g4 {[%clk 0:02:32]} 10. h4 {[%clk 0:02:45]}  d5 {[%clk 0:02:28]} 11. g3 {[%clk 0:02:35]}  Be6 {[%clk 0:02:22]} 12. Qe2 {[%clk 0:02:28]}  Qd7 {[%clk 0:02:15]} 13. Na3 {[%clk 0:02:28]}  O-O-O {[%clk 0:02:15]} 14. Bg5 {[%clk 0:02:29]}  Kb8 {[%clk 0:01:59]} 15. Rfe1 {[%clk 0:02:22]}  d4 {[%clk 0:01:54]} 16. Nf1 {[%clk 0:01:59]}  c4 {[%clk 0:01:47]} 17. Red1 {[%clk 0:01:56]}  cxd3 {[%clk 0:01:38]} 18. Bxd3 {[%clk 0:01:52]}  Nh7 {[%clk 0:01:32]} 19. Bxe7 {[%clk 0:01:51]}  Qxe7 {[%clk 0:01:33]} 20. Nc2 {[%clk 0:01:46]}  Ng5 {[%clk 0:01:18]} 21. hxg5 {[%clk 0:01:30]}  h4 {[%clk 0:01:19]} 22. Bb5 {[%clk 0:01:27]}  Qxg5 {[%clk 0:01:09]} 23. Bxc6 {[%clk 0:01:24]}  bxc6 {[%clk 0:01:10]} 24. Nb4 {[%clk 0:01:24]}  Bd7 {[%clk 0:01:06]} 25. cxd4 {[%clk 0:01:19]}  hxg3 {[%clk 0:00:36]} 26. Nxg3 {[%clk 0:01:20]}  Rh3 {[%clk 0:00:33]} 27. dxe5 {[%clk 0:01:17]}  Rdh8 {[%clk 0:00:22]} 28. Rxd7 {[%clk 0:01:09]}  Qh4 {[%clk 0:00:22]} 29. Nxc6+ {[%clk 0:01:08]}  Kc8 {[%clk 0:00:22]} 30. Qa6+ {[%clk 0:01:08]}  Kxd7 {[%clk 0:00:22]} 31. Rd1+ {[%clk 0:00:54]}  Kc7 {[%clk 0:00:20]} 32. Qxa7+ {[%clk 0:00:51]}  Kxc6 {[%clk 0:00:20]} 33. Rd6+ {[%clk 0:00:49]}  Kb5 {[%clk 0:00:20]} 34. Qb6+ {[%clk 0:00:50]}  Kc4 {[%clk 0:00:20]} 35. Rd4# {[%clk 0:00:50]} 1-0


[Site "https://www.chess.com"]